bitfinex-derivatives/quotes_ETHF0:USTF0_20250828
["timestamp","ask_amount","ask_price","bid_price","bid_amount"]
[1756377366725,0.2893,4608.3,4607.8,3.2078]
[1756377366915,0.6696,4608.3,4607.9,19.828]
[1756377367114,0.2893,4608.2,4607.9,19.828]
[1756377367317,0.2928,4608.6,4607.9,19.828]
[1756377367514,3.2078,4609.2,4608.3,3.2078]
[1756377367727,3.2078,4609.2,4608.4,19.828]
[1756377368531,0.2893,4609.3,4608.9,3.2078]
[1756377368731,0.2846,4609.4,4609.0,19.828]
[1756377368924,0.2846,4609.4,4608.1,0.39059]
[1756377368925,0.5615,4609.3,4608.4,3.2078]
[1756377369226,0.9662,4609.2,4608.5,19.828]
[1756377369417,0.9662,4609.2,4608.6,40.8]
[1756377370230,0.2846,4609.1,4608.7,19.827]
[1756377370530,0.2846,4608.9,4608.7,19.827]
[1756377370826,0.5615,4609.3,4608.7,19.827]
[1756377371035,0.9662,4609.3,4608.7,19.827]
[1756377371527,0.6816,4609.3,4608.7,19.827]
[1756377371734,0.2769,4609.2,4608.7,19.827]
[1756377372032,1.102,4608.7,4608.4,3.2078]
[1756377372329,0.2846,4608.5,4608.4,3.2078]
[1756377372531,0.2846,4608.5,4608.4,23.0328]
[1756377373526,0.5615,4608.5,4608.4,3.2078]
[1756377373733,0.2846,4608.5,4608.4,23.0328]
[1756377374337,0.2846,4608.5,4608.4,3.2078]
[1756377374532,0.2846,4608.5,4608.4,23.0318]
[1756377374728,1.6635,4608.5,4608.4,23.0318]
[1756377375338,1.6635,4608.5,4608.4,3.2078]
[1756377375638,1.6635,4608.5,4608.4,23.0318]
[1756377376042,1.6635,4608.5,4608.4,3.2078]
[1756377376347,1.15941298,4608.5,4607.9,31.267]
[1756377376546,0.6816,4608.1,4608.0,19.823]
[1756377376739,2.14133388,4608.1,4608.0,19.823]
[1756377377733,1.86443388,4608.1,4608.0,19.823]
[1756377378036,2.14133388,4608.1,4608.0,19.823]
[1756377379042,1.03933388,4608.1,4608.0,19.823]
[1756377379241,0.76243388,4608.1,4608.0,19.823]
[1756377379749,0.2846,4609.0,4608.1,0.39058]
[1756377379935,0.48336945,4608.9,4608.4,3.59836]
[1756377380143,0.48336945,4608.8,4608.5,19.823]
[1756377380438,0.48336945,4608.7,4608.6,40.8]
[1756377382139,0.48336945,4608.7,4608.6,60.622]
[1756377385442,1.04486945,4608.7,4608.6,60.621]
[1756377385746,1.46526945,4608.7,4608.6,60.621]
[1756377386549,1.66616945,4608.7,4608.6,19.821]
[1756377386754,2.14686945,4608.7,4608.6,19.821]
[1756377387450,2.14686945,4608.7,4608.6,19.82]
[1756377387848,0.76796945,4608.7,4608.6,19.82]
[1756377388149,2.95038612,4610.9,4608.6,19.82]
[1756377388150,0.2846,4609.0,4608.6,19.82]
[1756377388344,0.483421,4608.9,4608.6,19.82]
[1756377388550,0.768021,4608.8,4608.7,19.82]
[1756377389149,0.483421,4608.8,4608.7,19.82]
[1756377389751,0.2846,4609.6,4608.7,24.21053]
[1756377390053,0.48334314,4609.5,4608.8,41.19053]
[1756377390243,0.48334314,4609.4,4608.9,0.39052]
[1756377390440,0.2846,4609.6,4609.0,20.22951]
[1756377390645,0.483343,4609.5,4609.0,19.839]
[1756377390846,0.483343,4609.4,4609.0,19.839]
[1756377392752,0.767943,4609.4,4609.0,19.839]
[1756377392954,0.2846,4609.4,4609.0,19.839]
[1756377395149,0.9819,4610.8,4609.0,19.839]
[1756377395355,0.9819,4610.6,4609.0,19.839]
[1756377395549,0.48334108,4610.5,4609.1,40.8]
[1756377395745,0.48334108,4610.4,4609.1,40.8]
[1756377395950,0.48334108,4610.3,4609.1,40.8]
[1756377396150,0.21692,4610.7,4609.1,40.8]
[1756377396151,0.9819,4610.1,4609.1,40.8]
[1756377396351,0.705,4609.9,4609.2,19.823]
[1756377396552,0.6816,4609.7,4609.2,19.823]
[1756377396749,0.2846,4609.4,4609.3,19.821]
[1756377396954,2.14684108,4609.4,4609.3,19.821]
[1756377398758,2.14684108,4609.4,4608.7,40.8]
[1756377399050,2.14684108,4609.4,4608.7,41.19054]
[1756377399051,0.48334108,4609.3,4608.7,41.19054]
[1756377399256,0.48334108,4609.3,4609.1,0.3905]
[1756377399456,0.2962,4609.8,4609.4,0.39048]
[1756377399658,0.48333041,4609.7,4609.5,19.818]
[1756377399959,0.48333041,4609.6,4609.5,19.818]
[1756377400157,1.56368695,4611.1,4609.5,19.818]
[1756377400363,0.4117,4611.6,4610.3,0.3904]
[1756377400551,0.4117,4611.6,4610.6,0.39038]
[1756377400552,0.2962,4611.5,4610.6,0.39038]
[1756377400752,0.2962,4611.5,4610.7,49.658]
[1756377401160,0.6362,4612.4,4611.2,0.39033]
[1756377401456,0.9324,4612.1,4611.3,19.888]
[1756377401653,0.9324,4612.1,4611.4,8.817]
[1756377401953,1.56368695,4613.2,4611.5,17.756]
[1756377402159,1.56368695,4613.2,4611.8,0.39028]
[1756377402160,0.2962,4613.0,4611.8,0.39028]
[1756377402359,0.9324,4613.0,4611.9,19.892]
[1756377402561,0.2962,4613.0,4611.9,19.892]
[1756377402754,0.2962,4613.0,4612.2,0.39024]
[1756377402955,0.9961,4614.1,4611.9,21.4431835]
[1756377403157,0.2962,4613.9,4612.3,0.39023]
[1756377403353,0.2882,4613.8,4612.4,7.478]
[1756377403553,0.2962,4613.5,4612.5,14.582]
[1756377403752,0.4823,4613.4,4612.3,1.5511835]
[1756377403957,0.2962,4613.2,4612.2,1.5511835]
[1756377404153,0.2882,4612.9,4612.3,7.735]
[1756377404350,1.2206,4612.7,4612.1,1.5511835]
[1756377404555,0.6362,4612.6,4612.2,15.435]
[1756377404756,0.2962,4612.3,4611.7,1.5511835]
[1756377405057,0.2962,4612.2,4611.6,1.5511835]
[1756377405363,0.5844,4612.1,4611.7,19.898]
[1756377405558,0.2882,4612.1,4611.7,19.898]
[1756377405754,0.4743,4612.1,4611.8,19.896]
[1756377405951,0.2882,4612.6,4611.8,19.896]
[1756377406155,0.9324,4612.5,4611.9,40.8]
[1756377406355,1.56368695,4613.7,4612.0,19.894]
[1756377406764,0.7079,4613.3,4612.1,19.894]
[1756377406962,0.4823,4612.2,4612.1,19.894]
[1756377407263,0.6999,4613.2,4612.1,19.894]
[1756377407562,0.5844,4612.8,4612.1,19.894]
[1756377407766,0.1861,4612.6,4611.9,40.8]
[1756377408068,0.2962,4612.7,4611.9,40.8]
[1756377408365,0.2962,4612.7,4612.0,19.887]
[1756377410365,0.2962,4613.0,4612.0,19.887]
[1756377410570,0.4823,4613.0,4612.0,19.887]
[1756377411368,0.9244,4614.6,4614.5,0.1974]
[1756377411563,1.3361,4614.6,4614.5,0.06539499]
[1756377411769,1.3361,4614.6,4614.5,5.875]
[1756377412065,0.6362,4614.5,4614.1,40.8]
[1756377412367,0.6362,4614.5,4613.4,0.1974]
[1756377412368,1.3361,4613.5,4613.4,0.1974]
[1756377412565,1.3361,4613.5,4613.4,8.1694]
[1756377412566,1.81414154,4613.5,4613.4,8.1694]
[1756377412755,1.81414154,4613.5,4613.4,48.9694]
[1756377413467,2.11034154,4613.5,4613.4,8.1694]
[1756377413669,2.11034154,4613.5,4613.4,0.1974]
[1756377413871,2.11034154,4613.5,4613.4,6.6784]
[1756377414568,0.47804154,4613.5,4613.4,6.8425]
[1756377414868,1.6323,4614.3,4614.2,0.1974]
[1756377415065,2.1103375,4614.3,4614.2,6.9604]
[1756377415768,2.1103375,4614.3,4614.2,20.2004]
[1756377415967,1.1142375,4614.3,4613.6,40.8]
[1756377416264,1.6323,4614.3,4614.2,20.002]
[1756377416474,2.10673424,4614.3,4614.2,20.002]
[1756377417158,2.10673424,4614.3,4614.2,20.1994]
[1756377419669,2.10673424,4614.3,4612.5,1.5511835]
[1756377419972,0.9961,4614.1,4612.7,0.1641]
[1756377420172,0.7079,4613.9,4612.7,0.1641]
[1756377420376,1.69503424,4613.8,4613.7,0.1974]
[1756377420572,2.10673424,4613.8,4613.7,0.1974]
[1756377421266,0.444,4613.6,4613.5,5.923]
[1756377421467,2.10673424,4613.6,4613.5,11.903]
[1756377421870,2.10673424,4613.6,4613.5,17.35]
[1756377422074,2.10673424,4613.6,4612.6,0.1641]
[1756377422267,0.5844,4613.1,4613.0,0.1974]
[1756377422470,1.05883424,4613.1,4613.0,0.3615]
[1756377422665,0.77063424,4613.1,4613.0,0.3615]
[1756377423074,1.69503424,4613.1,4613.0,0.1974]
[1756377423376,1.69503424,4613.1,4613.0,20.1844]
[1756377423580,1.69503424,4613.1,4613.0,20.1814]
[1756377423875,2.10673424,4613.1,4613.0,0.1974]
[1756377424377,2.10673424,4613.1,4612.4,0.1641]
[1756377424579,1.2206,4612.5,4612.4,0.1974]
[1756377424873,2.10673424,4612.5,4612.4,20.1824]
[1756377425671,2.10673424,4612.5,4612.4,19.985]
[1756377426273,2.10673424,4612.5,4612.3,31.24]
[1756377426472,1.47053424,4612.4,4612.3,51.222]
[1756377426986,1.6323,4611.8,4611.7,0.1974]
[1756377427176,2.10673424,4611.8,4611.7,20.1794]
[1756377427671,2.10673424,4611.8,4611.7,0.1974]
[1756377427877,2.10673424,4611.8,4611.7,20.1774]
[1756377428979,2.10673424,4611.8,4611.7,0.1974]
[1756377429176,2.11913424,4611.8,4611.7,19.981]
[1756377429572,2.11913424,4611.8,4610.8,31.3949]
[1756377429769,1.2617,4611.0,4610.9,20.1729]
[1756377429974,0.3037,4611.0,4610.9,20.3369]
[1756377431282,0.3037,4611.2,4611.0,0.164]
[1756377431581,0.3037,4611.2,4611.1,0.3599]
[1756377431884,0.77923997,4611.2,4611.1,0.3599]
[1756377432073,1.56140932,4613.0,4611.2,0.164]
[1756377432280,1.197,4612.8,4612.7,0.1959]
[1756377432478,2.14842639,4612.8,4612.7,0.07805448]
[1756377432986,1.13992639,4612.8,4612.4,10.793]
[1756377433173,1.2617,4612.5,4612.4,10.8668]
[1756377433377,0.77922639,4612.5,4612.4,10.8668]
[1756377433578,0.77922639,4612.5,4612.4,10.9129]
[1756377434279,0.47552639,4612.5,4612.4,14.9129]
[1756377434486,0.3037,4613.0,4612.5,0.0461]
[1756377434684,1.3793,4613.0,4612.9,0.0738]
[1756377434882,2.1482692,4613.0,4612.9,19.978]
[1756377435186,0.3037,4612.9,4612.8,17.834]
[1756377435478,2.1482692,4612.9,4612.8,17.834]
[1756377437290,1.1397692,4612.9,4612.7,19.985]
[1756377437588,1.0085,4612.7,4611.8,0.0461]
[1756377437888,2.1482692,4612.6,4612.5,0.0738]
[1756377438284,1.7370692,4612.6,4612.5,0.0738]
[1756377438483,1.2611692,4612.6,4612.5,0.0738]
[1756377438786,0.4753692,4612.6,4612.5,20.0969]
[1756377438993,0.3037,4613.1,4612.5,24.0508]
[1756377439292,0.3037,4613.1,4613.0,0.1199]
[1756377439491,0.47668447,4613.5,4612.7,0.0461]
[1756377439789,0.47668447,4613.4,4613.3,0.1199]
[1756377439990,0.47668447,4613.4,4613.3,20.1019]
[1756377440187,0.3037,4614.3,4613.3,64.9019]
[1756377440489,0.5973,4614.3,4613.3,60.8558]
[1756377440685,0.9681,4615.1,4613.6,0.39012]
[1756377440988,0.3037,4614.9,4613.4,1.76790349]
[1756377441192,0.2936,4614.6,4613.4,0.21671999]
[1756377441383,1.2617,4614.4,4613.5,19.992]
[1756377441682,1.2617,4614.4,4613.5,20.20871]
[1756377442282,1.95559101,4616.2,4613.6,19.99]
[1756377442283,0.5973,4614.2,4613.6,19.99]
[1756377442483,0.3037,4614.0,4613.6,19.99]
[1756377443186,0.6644,4614.1,4613.6,19.99]
[1756377443384,0.3037,4613.9,4613.6,19.99]
[1756377443581,0.3037,4613.9,4613.7,20.005]
[1756377443582,0.3037,4613.8,4613.7,20.005]
[1756377443782,1.6729,4613.8,4613.3,40.8]
[1756377443984,0.3037,4613.7,4613.4,20.0]
[1756377444689,0.3037,4614.2,4613.4,20.0]
[1756377444892,0.9681,4614.2,4613.4,20.0]
[1756377445287,0.6644,4614.2,4613.4,20.0]
[1756377445586,0.9681,4614.1,4613.4,20.0]
[1756377447291,0.3037,4614.0,4613.4,20.0]
[1756377447693,0.1885,4613.9,4613.5,19.99]
[1756377447892,1.6729,4613.8,4613.5,19.99]
[1756377448087,0.5973,4613.6,4613.5,19.99]
[1756377448384,1.2617,4613.6,4613.3,40.8]
[1756377448586,0.2936,4613.6,4613.4,19.984]
[1756377448894,0.3037,4613.5,4613.4,19.984]
[1756377449090,0.7048,4613.4,4613.0,1.5511835]
[1756377449292,0.7858,4613.0,4612.2,1.5511835]
[1756377449588,1.2617,4613.0,4612.3,44.589]
[1756377450587,0.3037,4612.9,4612.3,44.589]
[1756377452796,0.3037,4612.9,4612.3,46.1401835]
[1756377453799,0.3037,4612.9,4612.3,44.589]
[1756377454198,0.9681,4612.9,4612.4,19.995]
[1756377454396,0.6644,4612.9,4612.3,40.8]
[1756377454694,0.3037,4612.8,4612.4,19.989]
[1756377454895,0.958,4612.9,4612.4,19.989]
[1756377455285,1.0732,4613.0,4612.5,19.988]
[1756377455491,0.3037,4612.8,4612.3,40.8]
[1756377455692,0.3037,4612.0,4611.8,1.5511835]
[1756377455898,0.7858,4612.0,4611.9,19.985]
[1756377456292,0.3037,4612.0,4611.9,19.985]
[1756377457000,0.3037,4612.3,4611.9,19.985]
[1756377457296,0.5997,4612.7,4611.9,19.985]
[1756377457488,0.78170672,4612.6,4611.9,19.985]
[1756377457688,0.3037,4612.6,4611.9,19.985]
[1756377457888,0.3037,4612.6,4611.9,21.5361835]
[1756377458794,0.2936,4612.9,4612.0,1.5511835]
[1756377458986,0.47795972,4612.8,4611.9,21.5361835]
[1756377459190,0.47795972,4612.7,4611.9,21.9264435]
[1756377459391,0.2909,4612.9,4612.1,0.39025]
[1756377459591,0.47797109,4612.8,4612.2,19.977]
[1756377459791,0.2909,4612.9,4612.2,19.977]
[1756377460003,0.47797077,4612.8,4612.2,19.977]
[1756377460192,0.2909,4612.9,4612.2,19.977]
[1756377460501,0.47797091,4612.8,4612.2,20.36724]
[1756377460698,0.2909,4613.4,4612.4,0.39022]
[1756377461000,0.2909,4613.2,4612.5,19.976]
[1756377461199,0.2909,4613.0,4612.5,19.976]
[1756377461507,0.2808,4612.9,4612.5,19.976]
[1756377461792,0.2909,4613.2,4612.5,19.976]
[1756377461994,0.47794837,4613.1,4612.5,20.36621]
[1756377462206,0.9641,4613.7,4612.6,0.39021]
[1756377462393,0.97263171,4613.6,4612.6,0.39021]
[1756377462587,0.47793171,4613.5,4612.6,0.39021]
[1756377462788,0.47793171,4613.4,4612.5,19.976]
[1756377463093,0.47793171,4613.3,4612.6,0.39021]
[1756377463293,0.2909,4613.6,4612.7,40.8]
[1756377463498,0.2909,4613.6,4612.8,1.5511835]
[1756377463700,0.2909,4613.6,4612.9,19.971]
[1756377464401,0.9742,4613.6,4612.9,20.36118]
[1756377465300,0.9742,4613.6,4612.9,0.39018]
[1756377465499,0.2909,4613.5,4613.1,0.39016]
[1756377466702,0.9641,4613.9,4613.1,0.39016]
[1756377467002,0.4947,4613.7,4613.0,19.971]
[1756377467203,0.4947,4613.7,4613.1,0.39016]
[1756377467599,0.2909,4613.7,4613.0,19.971]
[1756377467798,0.9742,4613.7,4613.0,20.36117]
[1756377468100,0.97259569,4613.6,4613.0,20.36117]
[1756377468402,0.47789569,4613.5,4613.0,20.36117]
[1756377468604,0.76879569,4613.4,4613.0,20.36117]
[1756377468804,0.2909,4613.4,4613.0,20.36117]
[1756377469013,0.2808,4613.7,4613.0,20.36117]
[1756377469307,0.47789569,4613.6,4613.0,20.36117]
[1756377469498,0.47789569,4613.5,4613.0,20.36117]
[1756377469692,0.5717,4613.7,4613.0,20.36117]
[1756377469892,0.4778591,4613.6,4613.0,20.36117]
[1756377470097,0.7755,4613.7,4613.0,20.36117]
[1756377470299,0.2909,4613.5,4613.0,20.36117]
[1756377470503,0.2808,4613.7,4613.0,20.36117]
[1756377470706,0.76875624,4613.6,4613.0,20.36117]
[1756377470905,0.2909,4613.6,4613.0,20.36117]
[1756377471206,0.2909,4613.6,4613.2,0.39016]
[1756377471715,0.2909,4613.6,4613.1,0.39017]
[1756377472101,0.2808,4614.0,4613.2,0.39015]
[1756377472297,0.76873436,4613.9,4613.2,0.39015]
[1756377472506,0.47783436,4613.8,4613.2,0.39015]
[1756377472811,0.2909,4613.6,4613.0,20.36117]
[1756377473212,0.2909,4613.6,4613.2,0.39016]
[1756377473406,0.2808,4614.0,4613.3,31.61814]
[1756377473608,0.7687525,4613.9,4613.4,20.35114]
[1756377473808,0.4778525,4613.8,4613.4,20.35114]
[1756377474111,0.4778525,4613.7,4613.4,19.961]
[1756377474308,0.2909,4613.9,4613.4,19.961]
[1756377474604,0.5989,4614.2,4613.5,40.8]
[1756377474801,0.2909,4614.0,4613.5,41.19013]
[1756377475009,32.79240932,4616.2,4613.6,0.39012]
[1756377475208,0.2909,4615.9,4613.6,0.39012]
[1756377475410,0.2808,4615.5,4613.7,0.39012]
[1756377475601,1.44271788,4615.4,4613.8,19.957]
[1756377475807,0.9668,4615.2,4613.8,19.957]
[1756377476008,0.76681788,4615.1,4613.8,19.957]
[1756377476215,0.47591788,4615.0,4613.8,19.957]
[1756377476413,0.47591788,4614.9,4613.5,40.8]
[1756377476614,0.2909,4614.7,4613.6,19.954]
[1756377476913,0.2909,4614.8,4614.3,0.39006]
[1756377477217,0.2909,4614.8,4614.4,19.952]
[1756377477517,0.2808,4614.9,4614.4,19.952]
[1756377478314,0.2909,4614.8,4614.4,19.952]
[1756377478714,0.3951,4615.2,4614.4,19.952]
[1756377478917,0.2909,4615.1,4614.4,19.952]
[1756377479308,0.6833,4615.1,4614.5,19.965]
[1756377479508,0.9668,4614.9,4614.6,19.965]
[1756377479708,0.2038,4614.8,4614.6,20.13674035]
[1756377480018,0.7755,4614.8,4614.7,19.964]
[1756377480310,0.7755,4614.8,4614.6,0.17174035]
[1756377480613,0.9668,4614.6,4613.4,1.9413235]
[1756377480806,0.5717,4616.7,4613.7,0.39011]
[1756377481012,0.5717,4616.4,4613.9,40.8]
[1756377481210,0.4728993,4616.3,4613.9,40.8]
[1756377481414,0.4728993,4616.2,4614.0,19.971]
[1756377481619,0.4728993,4616.1,4614.0,19.971]
[1756377481914,0.9668,4615.9,4614.0,19.971]
[1756377482110,0.2909,4615.7,4614.0,19.971]
[1756377482315,0.4728993,4615.6,4614.0,19.971]
[1756377482619,0.6833,4614.1,4613.8,1.5511835]
[1756377482809,0.2808,4613.4,4612.4,1.5511835]
[1756377483120,0.2909,4612.9,4612.5,3.8611835]
[1756377483315,0.2909,4613.4,4612.5,2.31]
[1756377483616,0.2909,4613.4,4612.4,2.32919937]
[1756377483617,0.6833,4613.4,4612.8,1.54530225]
[1756377483820,0.9668,4613.1,4612.9,20.066]
[1756377484027,0.2909,4613.0,4612.7,1.54530225]
[1756377484224,0.2909,4613.0,4612.8,21.60930225]
[1756377484415,0.4846,4613.2,4612.8,21.60930225]
[1756377484616,0.2808,4613.2,4612.8,21.60930225]
[1756377484818,0.9641,4613.2,4612.8,1.54530225]
[1756377485022,0.5717,4613.0,4612.9,20.064]
[1756377485625,0.2808,4613.0,4612.7,1.54530225]
[1756377485818,0.2909,4612.9,4612.8,21.60230225]
[1756377486522,0.2909,4612.9,4612.8,20.057]
[1756377486725,0.2909,4612.9,4612.8,20.052]
[1756377487720,0.2808,4613.0,4612.7,1.54530225]
[1756377487721,0.2909,4612.8,4612.7,1.54530225]
[1756377487917,1.6501,4612.6,4612.5,0.17251164]
[1756377488121,0.2909,4612.6,4612.5,20.048]
[1756377488318,0.5612,4613.1,4612.5,20.22487157]
[1756377488520,0.7541,4613.1,4612.5,20.22487157]
[1756377488826,1.2216,4613.1,4612.5,20.22487157]
[1756377489018,0.9385,4613.1,4612.5,20.22487157]
[1756377489218,0.2831,4613.0,4612.5,20.22487157]
[1756377489516,0.1929,4613.0,4612.5,20.22487157]
[1756377489720,0.2781,4613.0,4612.5,20.22487157]
[1756377489920,0.2831,4612.8,4612.5,20.22487157]
[1756377490320,0.5612,4613.2,4612.6,0.39021]
[1756377490517,0.5612,4613.2,4612.7,0.3902]
[1756377490518,0.2831,4613.1,4612.7,0.3902]
[1756377490718,0.2831,4613.1,4612.7,20.045]
[1756377491025,0.2831,4613.1,4612.5,2.11238382]
[1756377491026,0.2831,4613.1,4612.8,20.045]
[1756377491323,0.2831,4613.3,4612.8,20.045]
[1756377491716,0.5612,4613.5,4612.8,51.271]
[1756377491917,0.75299949,4613.4,4612.8,51.271]
[1756377492227,0.5612,4613.2,4612.8,51.271]
[1756377492426,0.2831,4613.1,4612.8,51.271]
[1756377492723,0.2781,4613.2,4612.8,51.271]
[1756377492916,0.2831,4613.1,4612.8,51.271]
[1756377493624,0.2781,4613.2,4612.8,51.271]
[1756377493818,0.2831,4613.1,4612.8,51.271]
[1756377494021,0.2781,4613.2,4612.8,51.271]
[1756377494326,0.2831,4613.1,4612.8,51.271]
[1756377494522,0.2781,4613.2,4612.8,51.271]
[1756377494822,0.2831,4613.1,4612.8,51.271]
[1756377495024,0.2781,4613.2,4612.8,51.271]
[1756377495424,0.2831,4613.1,4612.8,51.271]
[1756377495827,0.2781,4613.5,4612.8,51.271]
[1756377496027,0.2831,4613.4,4612.8,51.271]
[1756377496831,0.9556,4614.8,4612.9,40.8]
[1756377497126,0.9556,4614.6,4612.9,40.8]
[1756377497326,1.616,4613.1,4613.0,20.019]
[1756377497929,1.616,4613.1,4613.0,60.819]
[1756377498631,1.2216,4613.1,4613.0,60.819]
[1756377499634,0.47491631,4613.1,4612.8,31.226]
[1756377499819,1.616,4612.9,4612.8,31.226]
[1756377500021,0.6604,4612.1,4611.6,1.54530225]
[1756377500334,0.5612,4610.9,4610.7,31.227]
[1756377500532,0.9385,4610.9,4610.8,11.733]
[1756377500827,0.6725,4613.7,4610.8,11.733]
[1756377501033,0.6725,4613.3,4610.8,11.733]
[1756377501225,0.6725,4613.1,4610.8,11.733]
[1756377501524,0.5612,4613.6,4610.8,11.733]
[1756377501726,0.2831,4613.2,4610.8,11.733]
[1756377501918,0.6775,4613.2,4610.8,11.733]
[1756377502123,3.605,4614.3,4610.8,11.733]
[1756377502324,3.605,4613.9,4610.8,11.733]
[1756377502523,0.9385,4610.8,4610.7,31.227]
[1756377502728,1.616,4610.8,4610.7,31.227]
[1756377502929,1.616,4610.8,4610.7,51.262]
[1756377504533,0.5612,4610.8,4610.7,51.262]
[1756377505131,0.3944,4611.8,4610.7,55.262]
[1756377505333,0.5612,4611.7,4610.7,51.262]
[1756377505534,0.5612,4611.7,4610.8,40.8]
[1756377505833,0.2831,4611.7,4610.8,40.8]
[1756377506034,0.2831,4612.0,4611.2,0.39033]
[1756377506230,0.2831,4612.0,4611.3,20.051]
[1756377506427,0.2831,4612.0,4611.4,0.39031]
[1756377507635,0.2831,4612.0,4611.5,0.3903]
[1756377508035,0.2831,4612.0,4611.3,20.44132]
[1756377508333,0.9435,4612.0,4611.4,20.055]
[1756377508533,0.5612,4611.9,4611.5,20.049]
[1756377508725,0.2831,4611.8,4611.5,20.049]
[1756377508931,0.2781,4611.8,4611.5,20.049]
[1756377509137,0.2831,4611.7,4611.5,20.049]
[1756377509434,0.2781,4611.8,4611.2,0.39033]
[1756377509634,0.2831,4611.7,4611.3,20.046]
[1756377510133,0.2781,4612.2,4611.3,20.046]
[1756377510441,0.2831,4612.1,4611.5,0.3903]
[1756377510738,0.2831,4612.1,4611.3,20.43631]
[1756377510933,0.9435,4612.1,4611.3,20.046]
[1756377511141,0.5612,4612.0,4611.6,40.8]
[1756377511340,0.5612,4611.9,4611.7,20.038]
[1756377511642,0.2831,4611.8,4611.7,20.038]
[1756377511940,0.2831,4611.8,4611.7,20.036]
[1756377513241,0.5612,4611.8,4611.7,20.036]
[1756377513541,0.2781,4611.8,4611.7,20.033]
[1756377513837,0.9385,4611.8,4611.6,40.8]
[1756377514047,1.3329,4611.8,4611.7,20.026]
[1756377514258,1.0548,4611.8,4611.6,40.8]
[1756377514550,1.616,4611.8,4611.7,20.026]
[1756377515352,1.2216,4611.8,4611.7,20.026]
[1756377516357,0.5612,4611.8,4611.7,20.026]
[1756377516554,1.07478519,4611.8,4611.7,20.026]
[1756377516953,0.79668519,4611.8,4611.7,20.026]
[1756377517458,1.73518519,4611.8,4611.7,20.026]
[1756377517665,2.12958519,4611.8,4611.7,20.026]
[1756377517851,2.12958519,4611.8,4611.6,40.8]
[1756377518056,0.51358519,4611.7,4611.6,40.8]
[1756377518354,0.79278519,4611.7,4611.6,60.809]
[1756377520257,0.51358519,4611.7,4611.6,60.809]
[1756377520460,0.51358519,4612.0,4611.6,60.809]
[1756377520756,0.2792,4611.9,4611.6,60.809]
[1756377520963,0.2792,4611.7,4611.6,40.8]
[1756377521159,0.79278519,4611.7,4611.6,40.8]
[1756377521461,0.79278519,4611.7,4611.6,60.796]
[1756377523362,0.51358519,4611.7,4611.6,60.796]
[1756377523862,0.2792,4611.9,4611.6,60.796]
[1756377524162,0.52814786,4611.8,4611.6,60.796]
[1756377524363,0.2792,4611.9,4611.6,60.796]
[1756377524561,0.52814785,4611.8,4611.6,60.796]
[1756377524758,0.2792,4611.9,4611.6,60.796]
[1756377525064,0.80734785,4611.8,4611.6,60.796]
[1756377525363,0.2792,4611.8,4611.6,60.796]
[1756377525562,0.2792,4611.8,4611.6,61.18629]
[1756377526862,0.2792,4611.8,4611.7,0.39028]
[1756377527961,0.2792,4611.8,4611.6,61.18629]
[1756377528266,1.6407,4611.7,4610.9,0.97589]
[1756377528559,0.7266,4612.1,4611.6,0.39029]
[1756377528760,0.83095818,4612.0,4611.7,60.769]
[1756377528958,0.2792,4611.8,4611.7,60.769]
[1756377529160,0.582,4611.8,4611.7,60.769]
[1756377529552,1.11015674,4611.8,4611.7,60.769]
[1756377530262,0.1886,4611.7,4610.7,31.227]
[1756377530460,1.0058,4613.1,4610.8,19.964]
[1756377530656,1.56182342,4613.2,4611.0,0.39034]
[1756377530657,0.4238,4612.9,4611.0,0.39034]
[1756377530863,0.52818657,4612.8,4611.1,19.964]
[1756377531063,1.0058,4612.6,4611.2,0.39033]
[1756377531263,0.52818657,4612.5,4611.3,19.964]
[1756377531461,0.52818657,4612.4,4611.3,19.964]
[1756377531660,0.582,4612.2,4611.3,19.964]
[1756377531858,1.0058,4611.9,4611.3,19.964]
[1756377532166,1.0058,4611.7,4611.3,19.964]
[1756377532360,0.582,4611.6,4611.3,19.964]
[1756377532562,0.3028,4611.6,4611.3,19.964]
[1756377532768,0.2792,4611.4,4611.3,19.964]
[1756377534567,0.2792,4611.4,4611.3,20.35432]
[1756377535468,0.582,4611.4,4611.3,20.35432]
[1756377537669,0.2792,4611.4,4611.3,20.35432]
[1756377537866,0.2792,4611.4,4611.3,19.964]
[1756377538470,0.2792,4611.4,4611.3,20.35432]
[1756377538667,0.2792,4611.4,4611.3,19.964]
[1756377539471,0.582,4611.4,4611.3,19.964]
[1756377540171,0.7706,4611.4,4611.0,40.8]
[1756377540366,0.7255,4611.2,4611.1,19.937]
[1756377540672,0.9377,4611.9,4611.1,19.937]
[1756377540866,0.2792,4611.7,4611.3,0.39031]
[1756377541066,0.3028,4611.7,4611.4,19.937]
[1756377541366,0.3028,4611.6,4611.4,20.32731]
[1756377541567,0.2792,4611.5,4611.4,20.32731]
[1756377542670,0.2792,4611.5,4611.4,19.937]
[1756377542867,1.2169,4611.5,4611.4,19.937]
[1756377543068,1.6407,4611.5,4611.4,19.937]
[1756377543268,1.6407,4611.5,4611.4,51.173]
[1756377543968,1.6407,4611.5,4611.4,31.236]